[Event "Titled Tuesday Blitz March 28 Early 2023"]
[White "Pulpan, Jakub"]
[Black "Senft, Sean"]
[WhiteFideId "302759"]
[BlackFideId "2044960"]
[WhiteElo "2484"]
[BlackElo "1989"]
[Result "1-0"]
[Round "01"]
[TimeControl "180+2"]
[Date "2023.03.28"]
[WhiteClock "0:00:18"]
[BlackClock "0:00:13"]

1. c4 {[%clk 0:02:39]}  c5 {[%clk 0:02:58]} 2. e3 {[%clk 0:02:29]}  g6 {[%clk 0:02:54]} 3. Nc3 {[%clk 0:02:28]}  Bg7 {[%clk 0:02:54]} 4. Nf3 {[%clk 0:02:28]}  Nc6 {[%clk 0:02:51]} 5. d4 {[%clk 0:02:24]}  cxd4 {[%clk 0:02:45]} 6. Nxd4 {[%clk 0:02:25]}  Nf6 {[%clk 0:02:44]} 7. Be2 {[%clk 0:02:20]}  O-O {[%clk 0:02:44]} 8. O-O {[%clk 0:02:21]}  d6 {[%clk 0:02:43]} 9. b3 {[%clk 0:02:18]}  a6 {[%clk 0:02:29]} 10. Bb2 {[%clk 0:02:17]}  Bd7 {[%clk 0:02:26]} 11. Rc1 {[%clk 0:02:08]}  Rc8 {[%clk 0:02:26]} 12. Qd2 {[%clk 0:02:07]}  Ne8 {[%clk 0:02:19]} 13. Nd5 {[%clk 0:01:54]}  e6 {[%clk 0:02:08]} 14. Nxc6 {[%clk 0:01:47]}  Bxc6 {[%clk 0:01:59]} 15. Bxg7 {[%clk 0:01:48]}  Nxg7 {[%clk 0:01:57]} 16. Nb4 {[%clk 0:01:45]}  Qe7 {[%clk 0:01:52]} 17. Nxc6 {[%clk 0:01:44]}  Rxc6 {[%clk 0:01:47]} 18. Bf3 {[%clk 0:01:42]}  Rc7 {[%clk 0:01:46]} 19. Rfd1 {[%clk 0:01:42]}  Rd8 {[%clk 0:01:44]} 20. Qb4 {[%clk 0:01:38]}  Ne8 {[%clk 0:01:31]} 21. Rc2 {[%clk 0:01:37]}  Nf6 {[%clk 0:01:28]} 22. Rcd2 {[%clk 0:01:36]}  Rcd7 {[%clk 0:01:28]} 23. g3 {[%clk 0:01:30]}  Kf8 {[%clk 0:01:13]} 24. h4 {[%clk 0:01:14]}  d5 {[%clk 0:01:12]} 25. Qc3 {[%clk 0:01:09]}  dxc4 {[%clk 0:01:10]} 26. Rxd7 {[%clk 0:01:10]}  Rxd7 {[%clk 0:01:10]} 27. Rxd7 {[%clk 0:01:09]}  Qxd7 {[%clk 0:00:54]} 28. Qxf6 {[%clk 0:00:46]}  b5 {[%clk 0:00:42]} 29. bxc4 {[%clk 0:00:46]}  bxc4 {[%clk 0:00:43]} 30. Kg2 {[%clk 0:00:46]}  Qd2 {[%clk 0:00:42]} 31. Qh8+ {[%clk 0:00:32]}  Ke7 {[%clk 0:00:42]} 32. Qd4 {[%clk 0:00:33]}  Qxa2 {[%clk 0:00:39]} 33. Bc6 {[%clk 0:00:24]}  Qb3 {[%clk 0:00:32]} 34. e4 {[%clk 0:00:20]}  c3 {[%clk 0:00:14]} 35. e5 {[%clk 0:00:18]}  c2 {[%clk 0:00:13]} 36. Qd6# {[%clk 0:00:18]} 1-0


[Site "https://www.chess.com"]

[Event "Titled Tuesday Blitz March 28 Early 2023"]
[White "Salemgareev, Tagir"]
[Black "Perez Rodriguez, Jennifer"]
[WhiteFideId "24199052"]
[BlackFideId "3507831"]
[WhiteElo "2366"]
[BlackElo "2170"]
[Result "1-0"]
[Round "01"]
[TimeControl "180+2"]
[Date "2023.03.28"]
[WhiteClock "0:00:16"]
[BlackClock "0:00:03"]

1. d4 {[%clk 0:02:41]}  d5 {[%clk 0:02:21]} 2. Nf3 {[%clk 0:02:37]}  Nf6 {[%clk 0:02:20]} 3. c4 {[%clk 0:02:36]}  c6 {[%clk 0:02:20]} 4. e3 {[%clk 0:02:35]}  e6 {[%clk 0:02:19]} 5. Nc3 {[%clk 0:02:35]}  Nbd7 {[%clk 0:02:18]} 6. Qc2 {[%clk 0:02:35]}  Bd6 {[%clk 0:02:18]} 7. b3 {[%clk 0:02:35]}  e5 {[%clk 0:02:11]} 8. cxd5 {[%clk 0:01:55]}  cxd5 {[%clk 0:01:36]} 9. Nb5 {[%clk 0:01:54]}  Bb8 {[%clk 0:01:30]} 10. Ba3 {[%clk 0:01:48]}  Qa5+ {[%clk 0:01:22]} 11. Qd2 {[%clk 0:01:44]}  Qxd2+ {[%clk 0:01:16]} 12. Nxd2 {[%clk 0:01:43]}  exd4 {[%clk 0:01:12]} 13. Nxd4 {[%clk 0:01:28]}  a6 {[%clk 0:01:02]} 14. Nf5 {[%clk 0:01:16]}  Rg8 {[%clk 0:00:54]} 15. Nd6+ {[%clk 0:01:09]}  Bxd6 {[%clk 0:00:54]} 16. Bxd6 {[%clk 0:01:10]}  Nf8 {[%clk 0:00:54]} 17. f3 {[%clk 0:01:08]}  Ne6 {[%clk 0:00:53]} 18. Kf2 {[%clk 0:01:07]}  Kd7 {[%clk 0:00:46]} 19. Be5 {[%clk 0:01:06]}  Ne8 {[%clk 0:00:44]} 20. Bd3 {[%clk 0:01:05]}  g6 {[%clk 0:00:38]} 21. Rhd1 {[%clk 0:01:04]}  f6 {[%clk 0:00:36]} 22. Bb2 {[%clk 0:01:03]}  Ke7 {[%clk 0:00:36]} 23. b4 {[%clk 0:00:59]}  Bd7 {[%clk 0:00:36]} 24. Nb3 {[%clk 0:00:57]}  Nd6 {[%clk 0:00:33]} 25. Be2 {[%clk 0:00:53]}  Bc6 {[%clk 0:00:31]} 26. a4 {[%clk 0:00:48]}  Nc4 {[%clk 0:00:27]} 27. Bc3 {[%clk 0:00:48]}  b5 {[%clk 0:00:23]} 28. a5 {[%clk 0:00:41]}  Rac8 {[%clk 0:00:20]} 29. Nd4 {[%clk 0:00:39]}  Nxd4 {[%clk 0:00:20]} 30. Bxd4 {[%clk 0:00:39]}  Rge8 {[%clk 0:00:18]} 31. g4 {[%clk 0:00:39]}  Kf7 {[%clk 0:00:18]} 32. h4 {[%clk 0:00:38]}  Bd7 {[%clk 0:00:17]} 33. g5 {[%clk 0:00:31]}  f5 {[%clk 0:00:16]} 34. Rac1 {[%clk 0:00:26]}  Be6 {[%clk 0:00:13]} 35. Rh1 {[%clk 0:00:25]}  Nd6 {[%clk 0:00:11]} 36. Rxc8 {[%clk 0:00:23]}  Rxc8 {[%clk 0:00:10]} 37. h5 {[%clk 0:00:24]}  Rc2 {[%clk 0:00:02]} 38. hxg6+ {[%clk 0:00:23]}  hxg6 {[%clk 0:00:03]} 39. Rh7+ {[%clk 0:00:23]}  Ke8 {[%clk 0:00:03]} 40. Ra7 {[%clk 0:00:19]}  Nf7 {[%clk 0:00:04]} 41. Rxa6 {[%clk 0:00:16]}  Bd7 {[%clk 0:00:04]} 42. Rxg6 {[%clk 0:00:15]}  Rb2 {[%clk 0:00:04]} 43. Rg8+ {[%clk 0:00:15]}  Ke7 {[%clk 0:00:03]} 44. g6 {[%clk 0:00:16]} 1-0


[Site "https://www.chess.com"]

[Event "Titled Tuesday Blitz March 28 Early 2023"]
[White "Kozelov, Roman"]
[Black "Prohaszka, Peter"]
[WhiteFideId "14133377"]
[BlackFideId "726265"]
[WhiteElo "2149"]
[BlackElo "2626"]
[Result "1-0"]
[Round "01"]
[TimeControl "180+2"]
[Date "2023.03.28"]
[WhiteClock "0:00:07"]
[BlackClock "0:00:14"]

1. e4 {[%clk 0:02:50]}  c6 {[%clk 0:02:59]} 2. d4 {[%clk 0:02:50]}  d5 {[%clk 0:03:00]} 3. e5 {[%clk 0:02:50]}  Bf5 {[%clk 0:03:00]} 4. Bd3 {[%clk 0:02:51]}  Bxd3 {[%clk 0:02:59]} 5. Qxd3 {[%clk 0:02:52]}  e6 {[%clk 0:02:59]} 6. Ne2 {[%clk 0:02:52]}  Qa5+ {[%clk 0:02:58]} 7. c3 {[%clk 0:02:52]}  Qa6 {[%clk 0:02:58]} 8. Qf3 {[%clk 0:02:53]}  c5 {[%clk 0:02:57]} 9. O-O {[%clk 0:02:53]}  Nc6 {[%clk 0:02:57]} 10. a3 {[%clk 0:02:53]}  Rc8 {[%clk 0:02:44]} 11. Be3 {[%clk 0:02:49]}  c4 {[%clk 0:02:43]} 12. Nd2 {[%clk 0:02:46]}  Na5 {[%clk 0:02:43]} 13. Qh3 {[%clk 0:02:41]}  Ne7 {[%clk 0:02:42]} 14. Ng3 {[%clk 0:02:37]}  Qb5 {[%clk 0:02:27]} 15. Rab1 {[%clk 0:02:34]}  h5 {[%clk 0:02:24]} 16. Bg5 {[%clk 0:02:33]}  h4 {[%clk 0:02:12]} 17. Bxe7 {[%clk 0:02:32]}  Bxe7 {[%clk 0:02:12]} 18. f4 {[%clk 0:02:31]}  Kd7 {[%clk 0:02:10]} 19. Ne2 {[%clk 0:02:30]}  g6 {[%clk 0:02:10]} 20. Qe3 {[%clk 0:01:51]}  Rh5 {[%clk 0:02:08]} 21. h3 {[%clk 0:01:50]}  Nb3 {[%clk 0:02:07]} 22. Nxb3 {[%clk 0:01:50]}  cxb3 {[%clk 0:02:08]} 23. Rf2 {[%clk 0:01:43]}  a5 {[%clk 0:02:08]} 24. Rbf1 {[%clk 0:01:42]}  a4 {[%clk 0:02:08]} 25. Nc1 {[%clk 0:01:41]}  Kc7 {[%clk 0:02:08]} 26. Nd3 {[%clk 0:01:41]}  Kb6 {[%clk 0:02:08]} 27. Kh2 {[%clk 0:01:40]}  Rch8 {[%clk 0:02:07]} 28. Qd2 {[%clk 0:01:37]}  Qc4 {[%clk 0:02:07]} 29. Rf3 {[%clk 0:01:34]}  R8h7 {[%clk 0:02:06]} 30. R3f2 {[%clk 0:01:33]}  Ka7 {[%clk 0:02:05]} 31. Rf3 {[%clk 0:01:34]}  Rh8 {[%clk 0:02:05]} 32. R3f2 {[%clk 0:01:33]}  Rc8 {[%clk 0:02:05]} 33. Rf3 {[%clk 0:01:34]}  Qb5 {[%clk 0:02:05]} 34. R1f2 {[%clk 0:01:33]}  Rc4 {[%clk 0:02:06]} 35. Rf1 {[%clk 0:01:25]}  Rf5 {[%clk 0:02:06]} 36. R1f2 {[%clk 0:01:25]}  Qa5 {[%clk 0:02:06]} 37. Nc1 {[%clk 0:01:15]}  Kb8 {[%clk 0:02:05]} 38. Nd3 {[%clk 0:01:15]}  Qb5 {[%clk 0:01:57]} 39. Nc1 {[%clk 0:01:15]}  Rh5 {[%clk 0:01:56]} 40. Nd3 {[%clk 0:01:14]}  Rh8 {[%clk 0:01:55]} 41. Rf1 {[%clk 0:01:07]}  Rhc8 {[%clk 0:01:55]} 42. R1f2 {[%clk 0:01:04]}  R8c6 {[%clk 0:01:54]} 43. Rf1 {[%clk 0:01:05]}  Bd8 {[%clk 0:01:54]} 44. Rb1 {[%clk 0:01:02]}  Qa5 {[%clk 0:01:48]} 45. Qf2 {[%clk 0:01:02]}  Be7 {[%clk 0:01:48]} 46. Qe2 {[%clk 0:01:01]}  Qc7 {[%clk 0:01:45]} 47. Nf2 {[%clk 0:00:56]}  Qc8 {[%clk 0:01:40]} 48. Ng4 {[%clk 0:00:56]}  Bxa3 {[%clk 0:01:25]} 49. bxa3 {[%clk 0:00:54]}  Rxc3 {[%clk 0:01:25]} 50. Rxc3 {[%clk 0:00:49]}  Rxc3 {[%clk 0:01:26]} 51. Qb5 {[%clk 0:00:43]}  Qc6 {[%clk 0:01:21]} 52. Qa5 {[%clk 0:00:42]}  Rc4 {[%clk 0:00:56]} 53. Nf6 {[%clk 0:00:35]}  b6 {[%clk 0:00:53]} 54. Qa6 {[%clk 0:00:22]}  b5 {[%clk 0:00:54]} 55. Qa5 {[%clk 0:00:20]}  Kb7 {[%clk 0:00:53]} 56. Qd8 {[%clk 0:00:19]}  Qc7 {[%clk 0:00:53]} 57. Qe8 {[%clk 0:00:19]}  Ka6 {[%clk 0:00:49]} 58. Qa8+ {[%clk 0:00:16]}  Qa7 {[%clk 0:00:48]} 59. Qd8 {[%clk 0:00:15]}  Rc7 {[%clk 0:00:46]} 60. Ne8 {[%clk 0:00:13]}  Rd7 {[%clk 0:00:46]} 61. Qc8+ {[%clk 0:00:13]}  Qb7 {[%clk 0:00:45]} 62. Qc5 {[%clk 0:00:11]}  Qb6 {[%clk 0:00:45]} 63. Qc8+ {[%clk 0:00:10]}  Qb7 {[%clk 0:00:43]} 64. Qc5 {[%clk 0:00:10]}  Rd8 {[%clk 0:00:38]} 65. Nd6 {[%clk 0:00:10]}  Qb6 {[%clk 0:00:39]} 66. Qb4 {[%clk 0:00:09]}  Ka7 {[%clk 0:00:23]} 67. Rc1 {[%clk 0:00:09]}  Kb8 {[%clk 0:00:18]} 68. Rc5 {[%clk 0:00:08]}  Ka7 {[%clk 0:00:15]} 69. Rxb5 {[%clk 0:00:08]}  Qa6 {[%clk 0:00:15]} 70. Ra5 {[%clk 0:00:08]}  b2 {[%clk 0:00:14]} 71. Qb7# {[%clk 0:00:07]} 1-0


[Site "https://www.chess.com"]

[Event "Titled Tuesday Blitz March 28 Early 2023"]
[White "Ozdemir, Serhan Berat"]
[Black "Schroeder, Jan-Christian"]
[WhiteFideId "6374611"]
[BlackFideId "24662259"]
[WhiteElo "2015"]
[BlackElo "2556"]
[Result "1-0"]
[Round "01"]
[TimeControl "180+2"]
[Date "2023.03.28"]
[WhiteClock "0:00:34"]
[BlackClock "0:00:18"]

1. e4 {[%clk 0:03:00]}  c5 {[%clk 0:02:59]} 2. Nf3 {[%clk 0:03:01]}  d6 {[%clk 0:02:58]} 3. d4 {[%clk 0:03:02]}  cxd4 {[%clk 0:02:58]} 4. Nxd4 {[%clk 0:03:03]}  Nf6 {[%clk 0:02:59]} 5. Nc3 {[%clk 0:03:03]}  g6 {[%clk 0:02:59]} 6. Be3 {[%clk 0:03:03]}  Bg7 {[%clk 0:02:59]} 7. f3 {[%clk 0:03:03]}  O-O {[%clk 0:02:59]} 8. Qd2 {[%clk 0:03:04]}  Nc6 {[%clk 0:03:00]} 9. Bc4 {[%clk 0:03:04]}  Bd7 {[%clk 0:02:57]} 10. O-O-O {[%clk 0:03:03]}  Rc8 {[%clk 0:02:37]} 11. Bb3 {[%clk 0:03:03]}  Nxd4 {[%clk 0:02:37]} 12. Bxd4 {[%clk 0:03:04]}  b5 {[%clk 0:02:37]} 13. Nd5 {[%clk 0:02:58]}  Nxd5 {[%clk 0:02:35]} 14. Bxg7 {[%clk 0:02:59]}  Kxg7 {[%clk 0:02:34]} 15. exd5 {[%clk 0:03:00]}  a5 {[%clk 0:02:33]} 16. a3 {[%clk 0:03:01]}  b4 {[%clk 0:02:25]} 17. axb4 {[%clk 0:02:31]}  axb4 {[%clk 0:02:26]} 18. Qxb4 {[%clk 0:02:28]}  Qc7 {[%clk 0:02:25]} 19. Rhe1 {[%clk 0:02:26]}  Rfe8 {[%clk 0:02:04]} 20. Re3 {[%clk 0:02:20]}  Kg8 {[%clk 0:02:01]} 21. Qd4 {[%clk 0:02:16]}  Bf5 {[%clk 0:01:55]} 22. Rc3 {[%clk 0:02:13]}  Qa5 {[%clk 0:01:55]} 23. g4 {[%clk 0:02:11]}  Bd7 {[%clk 0:01:54]} 24. Kd2 {[%clk 0:01:58]}  Rc5 {[%clk 0:01:18]} 25. Ke3 {[%clk 0:01:49]}  e5 {[%clk 0:01:16]} 26. dxe6 {[%clk 0:01:49]}  Bxe6 {[%clk 0:01:16]} 27. Kf2 {[%clk 0:01:43]}  Rxc3 {[%clk 0:01:10]} 28. Qxc3 {[%clk 0:01:41]}  Qg5 {[%clk 0:01:06]} 29. Bxe6 {[%clk 0:01:37]}  Rxe6 {[%clk 0:01:04]} 30. Kg3 {[%clk 0:01:34]}  h5 {[%clk 0:01:01]} 31. h4 {[%clk 0:01:23]}  Qe7 {[%clk 0:01:01]} 32. Ra1 {[%clk 0:01:15]}  Kh7 {[%clk 0:00:55]} 33. Ra8 {[%clk 0:01:10]}  Re5 {[%clk 0:00:26]} 34. Qc8 {[%clk 0:01:09]}  Qf6 {[%clk 0:00:24]} 35. Qg8+ {[%clk 0:01:09]}  Kh6 {[%clk 0:00:25]} 36. Qf8+ {[%clk 0:00:52]}  Kh7 {[%clk 0:00:24]} 37. Ra7 {[%clk 0:00:39]}  Rf5 {[%clk 0:00:18]} 38. gxf5 {[%clk 0:00:37]}  Qe5+ {[%clk 0:00:18]} 39. Kh3 {[%clk 0:00:36]}  Qxf5+ {[%clk 0:00:18]} 40. Kg2 {[%clk 0:00:34]} 1-0


[Site "https://www.chess.com"]

[Event "Titled Tuesday Blitz March 28 Early 2023"]
[White "Bitoon, Richard"]
[Black "Boraso, Alessio"]
[WhiteFideId "5201110"]
[BlackFideId "848077"]
[WhiteElo "2374"]
[BlackElo "2286"]
[Result "1-0"]
[Round "01"]
[TimeControl "180+2"]
[Date "2023.03.28"]
[WhiteClock "0:00:35"]
[BlackClock "0:00:02"]

1. e4 {[%clk 0:03:00]}  c5 {[%clk 0:02:58]} 2. c3 {[%clk 0:03:00]}  d5 {[%clk 0:02:49]} 3. exd5 {[%clk 0:03:01]}  Qxd5 {[%clk 0:02:49]} 4. d4 {[%clk 0:03:02]}  Nc6 {[%clk 0:02:49]} 5. Nf3 {[%clk 0:03:02]}  e5 {[%clk 0:02:50]} 6. Nxe5 {[%clk 0:03:02]}  Nxe5 {[%clk 0:02:50]} 7. dxe5 {[%clk 0:03:03]}  Qxe5+ {[%clk 0:02:49]} 8. Be3 {[%clk 0:03:03]}  Bd7 {[%clk 0:02:49]} 9. Nd2 {[%clk 0:03:03]}  O-O-O {[%clk 0:02:49]} 10. Nc4 {[%clk 0:02:49]}  Qc7 {[%clk 0:02:48]} 11. Qf3 {[%clk 0:02:49]}  Bc6 {[%clk 0:02:41]} 12. Qf5+ {[%clk 0:02:49]}  Bd7 {[%clk 0:02:22]} 13. Qxf7 {[%clk 0:02:48]}  Nf6 {[%clk 0:02:12]} 14. O-O-O {[%clk 0:02:31]}  b5 {[%clk 0:01:43]} 15. Na3 {[%clk 0:02:24]}  a6 {[%clk 0:01:35]} 16. Be2 {[%clk 0:01:29]}  Bd6 {[%clk 0:01:10]} 17. Qxg7 {[%clk 0:01:23]}  Be5 {[%clk 0:01:10]} 18. Qe7 {[%clk 0:01:12]}  Ne4 {[%clk 0:00:58]} 19. Bf3 {[%clk 0:01:12]}  Rhe8 {[%clk 0:00:51]} 20. Qxh7 {[%clk 0:01:07]}  Nd6 {[%clk 0:00:35]} 21. Rd5 {[%clk 0:01:02]}  Bf5 {[%clk 0:00:34]} 22. Qxc7+ {[%clk 0:01:01]}  Kxc7 {[%clk 0:00:33]} 23. Rxc5+ {[%clk 0:01:02]}  Kb8 {[%clk 0:00:32]} 24. Rd1 {[%clk 0:01:01]}  b4 {[%clk 0:00:24]} 25. cxb4 {[%clk 0:00:55]}  Bg6 {[%clk 0:00:06]} 26. Rc6 {[%clk 0:00:47]}  Bh7 {[%clk 0:00:02]} 27. Rb6+ {[%clk 0:00:46]}  Kc7 {[%clk 0:00:03]} 28. Rxa6 {[%clk 0:00:45]}  Nb7 {[%clk 0:00:02]} 29. Bb6+ {[%clk 0:00:43]}  Kb8 {[%clk 0:00:01]} 30. Ba7+ {[%clk 0:00:34]}  Kc7 {[%clk 0:00:02]} 31. Rc6# {[%clk 0:00:35]} 1-0


[Site "https://www.chess.com"]

[Event "Titled Tuesday Blitz March 28 Early 2023"]
[White "drdaro"]
[Black "Samant Aditya S"]
[BlackFideId "35080580"]
[WhiteElo "2389"]
[BlackElo "2362"]
[Result "1/2-1/2"]
[Round "01"]
[TimeControl "180+2"]
[Date "2023.03.28"]
[WhiteClock "0:00:27"]
[BlackClock "0:00:05"]

1. c4 {[%clk 0:02:55]}  Nf6 {[%clk 0:02:56]} 2. Nc3 {[%clk 0:02:55]}  e5 {[%clk 0:02:51]} 3. e4 {[%clk 0:02:54]}  Nc6 {[%clk 0:02:49]} 4. d3 {[%clk 0:02:53]}  Bc5 {[%clk 0:02:49]} 5. Bg5 {[%clk 0:02:52]}  h6 {[%clk 0:02:48]} 6. Bh4 {[%clk 0:02:50]}  O-O {[%clk 0:02:45]} 7. Nd5 {[%clk 0:02:46]}  Nxd5 {[%clk 0:02:42]} 8. Bxd8 {[%clk 0:02:45]}  Bb4+ {[%clk 0:02:43]} 9. Qd2 {[%clk 0:02:28]}  Bxd2+ {[%clk 0:02:41]} 10. Kxd2 {[%clk 0:02:29]}  Rxd8 {[%clk 0:02:39]} 11. exd5 {[%clk 0:02:29]}  Nd4 {[%clk 0:02:40]} 12. Ne2 {[%clk 0:02:29]}  Nxe2 {[%clk 0:02:39]} 13. Bxe2 {[%clk 0:02:29]}  d6 {[%clk 0:02:37]} 14. Rae1 {[%clk 0:02:25]}  f5 {[%clk 0:02:35]} 15. h4 {[%clk 0:02:24]}  Kf7 {[%clk 0:02:19]} 16. Ref1 {[%clk 0:02:18]}  Kf6 {[%clk 0:02:15]} 17. f4 {[%clk 0:02:18]}  g6 {[%clk 0:01:26]} 18. Rhg1 {[%clk 0:01:42]}  h5 {[%clk 0:01:26]} 19. g3 {[%clk 0:01:39]}  Bd7 {[%clk 0:01:25]} 20. Kc3 {[%clk 0:01:39]}  Re8 {[%clk 0:01:25]} 21. Kd2 {[%clk 0:01:37]}  a5 {[%clk 0:01:24]} 22. b3 {[%clk 0:01:34]}  Re7 {[%clk 0:01:24]} 23. Re1 {[%clk 0:01:34]}  Rae8 {[%clk 0:01:23]} 24. Bf3 {[%clk 0:01:35]}  b6 {[%clk 0:01:16]} 25. a3 {[%clk 0:01:35]}  Ra8 {[%clk 0:01:15]} 26. Re2 {[%clk 0:01:33]}  Rb8 {[%clk 0:01:13]} 27. Rge1 {[%clk 0:01:28]}  b5 {[%clk 0:01:12]} 28. Kc3 {[%clk 0:01:24]}  bxc4 {[%clk 0:01:10]} 29. dxc4 {[%clk 0:01:25]}  e4 {[%clk 0:01:10]} 30. Bg2 {[%clk 0:01:24]}  Ree8 {[%clk 0:01:09]} 31. Rb1 {[%clk 0:01:24]}  Rb6 {[%clk 0:01:09]} 32. Reb2 {[%clk 0:01:24]}  Reb8 {[%clk 0:01:06]} 33. Bf1 {[%clk 0:01:20]}  Ra8 {[%clk 0:00:59]} 34. Kd4 {[%clk 0:01:19]}  c5+ {[%clk 0:00:44]} 35. Kc3 {[%clk 0:01:15]}  Ke7 {[%clk 0:00:41]} 36. Be2 {[%clk 0:01:14]}  Kd8 {[%clk 0:00:41]} 37. a4 {[%clk 0:01:04]}  Rb4 {[%clk 0:00:41]} 38. Bd1 {[%clk 0:01:02]}  Rab8 {[%clk 0:00:41]} 39. Bc2 {[%clk 0:01:02]}  Ke8 {[%clk 0:00:41]} 40. Bd1 {[%clk 0:01:02]}  Kf7 {[%clk 0:00:42]} 41. Be2 {[%clk 0:01:03]}  Kf6 {[%clk 0:00:42]} 42. Bd1 {[%clk 0:01:03]}  Re8 {[%clk 0:00:42]} 43. Be2 {[%clk 0:01:03]}  e3 {[%clk 0:00:34]} 44. Re1 {[%clk 0:01:00]}  Reb8 {[%clk 0:00:28]} 45. Reb1 {[%clk 0:00:57]}  Re8 {[%clk 0:00:27]} 46. Re1 {[%clk 0:00:57]}  Re7 {[%clk 0:00:18]} 47. Bd1 {[%clk 0:00:52]}  Re8 {[%clk 0:00:18]} 48. Rbe2 {[%clk 0:00:47]}  Rbb8 {[%clk 0:00:10]} 49. Rxe3 {[%clk 0:00:47]}  Rxe3+ {[%clk 0:00:11]} 50. Rxe3 {[%clk 0:00:48]}  Rb4 {[%clk 0:00:06]} 51. Bc2 {[%clk 0:00:42]}  Rb6 {[%clk 0:00:07]} 52. Bd1 {[%clk 0:00:40]}  Rb4 {[%clk 0:00:07]} 53. Kd2 {[%clk 0:00:37]}  Rb6 {[%clk 0:00:08]} 54. Ke2 {[%clk 0:00:36]}  Rb8 {[%clk 0:00:08]} 55. Kd3 {[%clk 0:00:36]}  Rb4 {[%clk 0:00:08]} 56. Re2 {[%clk 0:00:33]}  Rb8 {[%clk 0:00:07]} 57. Rb2 {[%clk 0:00:33]}  Bxa4 {[%clk 0:00:06]} 58. Kc3 {[%clk 0:00:30]}  Bd7 {[%clk 0:00:06]} 59. Ra2 {[%clk 0:00:30]}  Ra8 {[%clk 0:00:05]} 60. Bc2 {[%clk 0:00:27]}  Ra7 {[%clk 0:00:05]} 61. Bd1 {[%clk 0:00:27]}  Ra8 {[%clk 0:00:05]} 62. Bc2 {[%clk 0:00:27]}  Ra7 {[%clk 0:00:05]} 63. Bd1 {[%clk 0:00:28]}  Ke7 {[%clk 0:00:05]} 64. Bc2 {[%clk 0:00:27]}  Kf6 {[%clk 0:00:05]} 1/2-1/2


[Site "https://www.chess.com"]

[Event "Titled Tuesday Blitz March 28 Early 2023"]
[White "Ilkhomi, Jaloliddin"]
[Black "Valle Maytin, Luis Enrique"]
[WhiteFideId "14700948"]
[BlackFideId "3503666"]
[WhiteElo "2045"]
[BlackElo "2225"]
[Result "0-1"]
[Round "01"]
[TimeControl "180+2"]
[Date "2023.03.28"]
[WhiteClock "0:00:02"]
[BlackClock "0:00:15"]

1. Nf3 {[%clk 0:02:59]}  Nf6 {[%clk 0:02:50]} 2. d4 {[%clk 0:02:59]}  e6 {[%clk 0:02:41]} 3. Bf4 {[%clk 0:02:58]}  d5 {[%clk 0:02:21]} 4. e3 {[%clk 0:02:57]}  Be7 {[%clk 0:02:20]} 5. Nbd2 {[%clk 0:02:57]}  Nbd7 {[%clk 0:02:20]} 6. Bd3 {[%clk 0:02:57]}  O-O {[%clk 0:02:19]} 7. Ne5 {[%clk 0:02:57]}  c5 {[%clk 0:02:15]} 8. c3 {[%clk 0:02:57]}  h6 {[%clk 0:02:11]} 9. Qf3 {[%clk 0:02:55]}  a6 {[%clk 0:01:51]} 10. g4 {[%clk 0:02:55]}  Nxe5 {[%clk 0:01:49]} 11. Bxe5 {[%clk 0:02:51]}  Nd7 {[%clk 0:01:43]} 12. Bf4 {[%clk 0:02:51]}  cxd4 {[%clk 0:01:40]} 13. exd4 {[%clk 0:02:51]}  Bf6 {[%clk 0:01:35]} 14. O-O-O {[%clk 0:02:45]}  e5 {[%clk 0:01:32]} 15. dxe5 {[%clk 0:02:39]}  Nxe5 {[%clk 0:01:33]} 16. Bxe5 {[%clk 0:02:38]}  Bxe5 {[%clk 0:01:33]} 17. h4 {[%clk 0:02:36]}  Be6 {[%clk 0:01:22]} 18. g5 {[%clk 0:02:35]}  Rc8 {[%clk 0:01:12]} 19. gxh6 {[%clk 0:02:31]}  Qa5 {[%clk 0:01:12]} 20. Nb1 {[%clk 0:01:36]}  d4 {[%clk 0:00:55]} 21. hxg7 {[%clk 0:01:34]}  Rfd8 {[%clk 0:00:51]} 22. Rhg1 {[%clk 0:01:16]}  f5 {[%clk 0:00:19]} 23. Qh5 {[%clk 0:01:04]}  Bf4+ {[%clk 0:00:18]} 24. Rd2 {[%clk 0:00:57]}  dxc3 {[%clk 0:00:18]} 25. Qh8+ {[%clk 0:00:16]}  Kf7 {[%clk 0:00:17]} 26. Qh7 {[%clk 0:00:07]}  Rg8 {[%clk 0:00:16]} 27. Qh5+ {[%clk 0:00:07]}  Ke7 {[%clk 0:00:16]} 28. Qf3 {[%clk 0:00:03]}  cxd2+ {[%clk 0:00:16]} 29. Kd1 {[%clk 0:00:03]}  Rc1+ {[%clk 0:00:16]} 30. Ke2 {[%clk 0:00:04]}  Qe5+ {[%clk 0:00:16]} 31. Be4 {[%clk 0:00:04]}  Bc4+ {[%clk 0:00:15]} 32. Qd3 {[%clk 0:00:02]}  Qxe4# {[%clk 0:00:15]} 0-1


[Site "https://www.chess.com"]

[Event "Titled Tuesday Blitz March 28 Early 2023"]
[White "Matinian, Nikita"]
[Black "Shkuran, Danylo"]
[WhiteFideId "24129100"]
[BlackFideId "14106248"]
[WhiteElo "2422"]
[BlackElo "2427"]
[Result "1-0"]
[Round "01"]
[TimeControl "180+2"]
[Date "2023.03.28"]
[WhiteClock "0:00:37"]
[BlackClock "0:00:13"]

1. e4 {[%clk 0:02:57]}  e6 {[%clk 0:02:59]} 2. d4 {[%clk 0:02:57]}  d5 {[%clk 0:03:00]} 3. Nc3 {[%clk 0:02:56]}  Bb4 {[%clk 0:03:00]} 4. e5 {[%clk 0:02:56]}  Ne7 {[%clk 0:03:00]} 5. Qg4 {[%clk 0:02:55]}  O-O {[%clk 0:03:00]} 6. a3 {[%clk 0:02:52]}  Bxc3+ {[%clk 0:02:59]} 7. bxc3 {[%clk 0:02:53]}  b6 {[%clk 0:03:00]} 8. h4 {[%clk 0:02:53]}  Kh8 {[%clk 0:03:00]} 9. h5 {[%clk 0:02:53]}  h6 {[%clk 0:03:00]} 10. Rh3 {[%clk 0:02:47]}  Ba6 {[%clk 0:02:59]} 11. Bxa6 {[%clk 0:02:46]}  Nxa6 {[%clk 0:03:00]} 12. Ne2 {[%clk 0:02:35]}  c5 {[%clk 0:02:59]} 13. Rf3 {[%clk 0:01:50]}  Nf5 {[%clk 0:02:49]} 14. Ng3 {[%clk 0:01:47]}  Qh4 {[%clk 0:02:46]} 15. Qf4 {[%clk 0:01:37]}  Qxf4 {[%clk 0:02:36]} 16. Rxf4 {[%clk 0:01:36]}  Nxg3 {[%clk 0:02:15]} 17. fxg3 {[%clk 0:01:37]}  Rac8 {[%clk 0:02:14]} 18. Kd2 {[%clk 0:01:37]}  f6 {[%clk 0:01:50]} 19. a4 {[%clk 0:01:31]}  fxe5 {[%clk 0:01:48]} 20. dxe5 {[%clk 0:01:31]}  Nb8 {[%clk 0:01:43]} 21. a5 {[%clk 0:01:31]}  b5 {[%clk 0:01:43]} 22. a6 {[%clk 0:01:28]}  Nc6 {[%clk 0:01:35]} 23. Rb1 {[%clk 0:01:19]}  Nxe5 {[%clk 0:01:02]} 24. Rxb5 {[%clk 0:01:18]}  Rxf4 {[%clk 0:00:54]} 25. gxf4 {[%clk 0:01:18]}  Nc4+ {[%clk 0:00:55]} 26. Ke2 {[%clk 0:01:18]}  Rc6 {[%clk 0:00:56]} 27. g4 {[%clk 0:01:04]}  Kg8 {[%clk 0:00:48]} 28. g5 {[%clk 0:01:02]}  Rxa6 {[%clk 0:00:45]} 29. Rb8+ {[%clk 0:01:02]}  Kf7 {[%clk 0:00:44]} 30. g6+ {[%clk 0:01:02]}  Ke7 {[%clk 0:00:41]} 31. Rb7+ {[%clk 0:01:02]}  Kd6 {[%clk 0:00:40]} 32. Rxg7 {[%clk 0:01:02]}  Ra1 {[%clk 0:00:35]} 33. Rd7+ {[%clk 0:00:52]}  Kxd7 {[%clk 0:00:31]} 34. g7 {[%clk 0:00:53]}  Rxc1 {[%clk 0:00:26]} 35. g8=Q {[%clk 0:00:53]}  Rxc2+ {[%clk 0:00:26]} 36. Kf3 {[%clk 0:00:53]}  Rxc3+ {[%clk 0:00:26]} 37. Kf2 {[%clk 0:00:49]}  Rc2+ {[%clk 0:00:23]} 38. Kg1 {[%clk 0:00:44]}  Rc1+ {[%clk 0:00:15]} 39. Kh2 {[%clk 0:00:44]}  a5 {[%clk 0:00:16]} 40. Qg7+ {[%clk 0:00:43]}  Kd6 {[%clk 0:00:14]} 41. Qxh6 {[%clk 0:00:44]}  a4 {[%clk 0:00:14]} 42. Qf8+ {[%clk 0:00:44]}  Kd7 {[%clk 0:00:13]} 43. h6 {[%clk 0:00:42]}  a3 {[%clk 0:00:14]} 44. Qg7+ {[%clk 0:00:36]}  Kd6 {[%clk 0:00:13]} 45. h7 {[%clk 0:00:37]}  a2 {[%clk 0:00:13]} 46. h8=Q {[%clk 0:00:37]} 1-0


[Site "https://www.chess.com"]